fUSD/lending_fUSD_20240607
["ID","MTS","AMOUNT","RATE_DAILY","PERIOD"]
[328748287,1717763446366,-218.0,0.00029863,2]
[328748289,1717763446376,-203.0,0.00029863,2]
[328748291,1717763446386,-1203.42195458,0.00029863,2]
[328748293,1717763446396,-217.0,0.00029863,2]
[328748295,1717763446405,-217.0,0.00029863,2]
[328748297,1717763446415,-533.92033964,0.00029863,2]
[328748299,1717763446424,-169.07823965,0.00029863,2]
[328748301,1717763446434,-200.0,0.00029863,2]
[328748303,1717763446444,-500.0,0.00029863,4]
[328748305,1717763446454,-500.0,0.00029863,4]
[328748307,1717763446464,-500.0,0.00029863,4]
[328748310,1717763446476,-500.0,0.00029863,4]
[328748313,1717763446486,-500.0,0.00029863,4]
[328748316,1717763446496,-500.0,0.00029863,4]
[328748319,1717763446506,-500.0,0.00029863,4]
[328748322,1717763446518,-500.0,0.00029863,4]
[328748324,1717763446534,-500.0,0.00029863,4]
[328748327,1717763446544,-500.0,0.00029863,4]
[328748329,1717763446555,-500.0,0.00029863,4]
[328748331,1717763446566,-490.28970637,0.00029863,4]
[328748332,1717763446576,-333.05830757,0.00029863,4]
[328748333,1717763446586,-500.0,0.00029863,4]
[328748335,1717763446597,-500.0,0.00029863,4]
[328748337,1717763446607,-500.0,0.00029863,4]
[328748338,1717763446616,-500.0,0.00029863,4]
[328748340,1717763446627,-500.0,0.00029863,4]
[328748343,1717763446637,-500.0,0.00029863,4]
[328748346,1717763446647,-500.0,0.00029863,4]
[328748349,1717763446657,-555.2013876,0.00029863,4]
[328748352,1717763446668,-500.0,0.00029863,4]
[328748355,1717763446678,-500.0,0.00029863,4]
[328748358,1717763446688,-500.0,0.00029863,4]
[328748361,1717763446701,-500.0,0.00029863,4]
[328748364,1717763446711,-500.0,0.00029863,4]
[328748367,1717763446721,-500.0,0.00029863,4]
[328748370,1717763446730,-500.0,0.00029863,4]
[328748373,1717763446739,-500.0,0.00029863,4]
[328748376,1717763446749,-500.0,0.00029863,4]
[328748378,1717763446758,-500.0,0.00029863,4]
[328748380,1717763446767,-500.0,0.00029863,4]
[328748382,1717763446786,-522.06623853,0.00029863,4]
[328748384,1717763446794,-500.0,0.00029863,4]
[328748386,1717763446804,-453.99787953,0.00029863,4]
[328748388,1717763446814,-511.06134986,0.00029863,4]
[328748390,1717763446823,-500.0,0.00029863,4]
[328748392,1717763446833,-500.0,0.00029863,4]
[328748394,1717763446842,-500.0,0.00029863,4]
[328748396,1717763446851,-500.0,0.00029863,4]
[328748398,1717763446861,-500.0,0.00029863,4]
[328748400,1717763446871,-500.0,0.00029863,4]
[328748402,1717763446880,-500.0,0.00029863,4]
[328748404,1717763446889,-553.75,0.00029863,4]
[328748406,1717763446898,-500.0,0.00029863,4]
[328748408,1717763446908,-500.0,0.00029863,4]
[328748410,1717763446917,-500.0,0.00029863,4]
[328748411,1717763446926,-500.0,0.00029863,4]
[328748413,1717763446936,-500.0,0.00029863,4]
[328748415,1717763446945,-500.0,0.00029863,4]
[328748417,1717763446955,-500.0,0.00029863,4]
[328748419,1717763446965,-500.0,0.00029863,4]
[328748421,1717763446975,-500.0,0.00029863,4]
[328748423,1717763446984,-500.0,0.00029863,4]
[328748425,1717763446994,-500.0,0.00029863,4]
[328748427,1717763447004,-500.0,0.00029863,4]
[328748429,1717763447013,-500.0,0.00029863,4]
[328748431,1717763447027,-500.0,0.00029863,4]
[328748433,1717763447037,-500.0,0.00029863,4]
[328748434,1717763447046,-500.0,0.00029863,4]
[328748451,1717763447213,-500.0,0.00029863,4]
[328748453,1717763447223,-500.0,0.00029863,4]
[328748455,1717763447233,-500.0,0.00029863,4]
[328748457,1717763447244,-500.0,0.00029863,4]
[328748459,1717763447253,-500.0,0.00029863,4]
[328748461,1717763447263,-500.0,0.00029863,4]
[328748463,1717763447278,-500.0,0.00029863,4]
[328748465,1717763447287,-500.0,0.00029863,4]
[328748467,1717763447298,-500.0,0.00029863,4]
[328748469,1717763447310,-356.49120765,0.00029863,4]
[328748470,1717763447320,-461.71030298,0.00029863,4]
[328748471,1717763447330,-500.0,0.00029863,4]
[328748472,1717763447339,-500.0,0.00029863,4]
[328748473,1717763447349,-500.0,0.00029863,4]
[328748474,1717763447358,-500.0,0.00029863,4]
[328748475,1717763447368,-500.0,0.00029863,4]
[328748476,1717763447377,-500.0,0.00029863,4]
[328748477,1717763447386,-500.0,0.00029863,4]
[328748478,1717763447396,-500.0,0.00029863,4]
[328748479,1717763447405,-500.0,0.00029863,4]
[328748480,1717763447414,-500.0,0.00029863,4]
[328748481,1717763447423,-500.0,0.00029863,4]
[328748482,1717763447434,-500.0,0.00029863,4]
[328748483,1717763447443,-500.0,0.00029863,4]
[328748484,1717763447452,-500.0,0.00029863,4]
[328748485,1717763447462,-500.0,0.00029863,4]
[328748486,1717763447473,-500.0,0.00029863,4]
[328748487,1717763447484,-500.0,0.00029863,4]
[328748488,1717763447493,-500.0,0.00029863,4]
[328748489,1717763447503,-500.0,0.00029863,4]
[328748490,1717763447512,-500.0,0.00029863,4]
[328748491,1717763447527,-500.0,0.00029863,4]
[328748492,1717763447537,-500.0,0.00029863,4]
[328748493,1717763447547,-500.0,0.00029863,4]
[328748494,1717763447557,-500.0,0.00029863,4]
[328748495,1717763447566,-500.0,0.00029863,4]
[328748496,1717763447576,-500.0,0.00029863,4]
[328748497,1717763447586,-500.0,0.00029863,4]
[328748498,1717763447595,-500.0,0.00029863,4]
[328748499,1717763447605,-500.0,0.00029863,4]
[328748500,1717763447614,-478.94989749,0.00029863,4]
[328748501,1717763447624,-500.0,0.00029863,4]
[328748502,1717763447633,-500.0,0.00029863,4]
[328748503,1717763447643,-500.0,0.00029863,4]
[328748504,1717763447653,-499.1988,0.00029863,4]
[328748505,1717763447663,-500.0,0.00029863,4]
[328748506,1717763447674,-500.0,0.00029863,4]
[328748507,1717763447684,-500.0,0.00029863,4]
[328748508,1717763447694,-500.0,0.00029863,4]
[328748509,1717763447704,-500.0,0.00029863,4]
[328748510,1717763447715,-500.0,0.00029863,4]
[328748511,1717763447725,-500.0,0.00029863,4]
[328748512,1717763447736,-500.0,0.00029863,4]
[328748513,1717763447746,-500.0,0.00029863,4]
[328748514,1717763447756,-381.24247319,0.00029863,4]
[328748515,1717763447766,-500.0,0.00029863,4]
[328748516,1717763447786,-500.0,0.00029863,4]
[328748517,1717763447797,-500.0,0.00029863,4]
[328748518,1717763447807,-622.76,0.00029863,4]
[328748519,1717763447819,-500.0,0.00029863,4]
[328748520,1717763447830,-500.0,0.00029863,4]
[328748521,1717763447841,-500.0,0.00029863,4]
[328748522,1717763447851,-500.0,0.00029863,4]
[328748523,1717763447863,-500.0,0.00029863,4]
[328748524,1717763447874,-500.0,0.00029863,4]
[328748525,1717763447884,-512.54541444,0.00029863,4]
[328748526,1717763447895,-500.0,0.00029863,4]
[328748527,1717763447906,-500.0,0.00029863,4]
[328748528,1717763447917,-500.0,0.00029863,4]
[328748529,1717763448135,-500.0,0.00029863,4]
[328748530,1717763448146,-500.0,0.00029863,4]
[328748531,1717763448157,-500.0,0.00029863,4]
[328748532,1717763448168,-379.29176244,0.00029863,4]
[328748533,1717763448179,-313.37347954,0.00029863,4]
[328748534,1717763448191,-500.0,0.00029863,4]
[328748535,1717763448202,-370.4109532,0.00029863,4]
[328748536,1717763448213,-509.33899944,0.00029863,4]
[328748537,1717763448224,-500.0,0.00029863,4]
[328748538,1717763448235,-500.0,0.00029863,4]
[328748539,1717763448246,-500.0,0.00029863,4]
[328748540,1717763448257,-503.23414966,0.00029863,4]
[328748541,1717763448269,-500.0,0.00029863,4]
[328748542,1717763448298,-500.0,0.00029863,4]
[328748543,1717763448309,-500.0,0.00029863,4]
[328748544,1717763448320,-500.0,0.00029863,4]
[328748545,1717763448331,-500.0,0.00029863,4]
[328748546,1717763448342,-500.0,0.00029863,4]
[328748547,1717763448352,-500.0,0.00029863,4]
[328748548,1717763448363,-500.0,0.00029863,4]
[328748549,1717763448374,-500.0,0.00029863,4]
[328748550,1717763448385,-500.0,0.00029863,4]
[328748551,1717763448395,-504.85296231,0.00029863,4]
[328748552,1717763448404,-712.46,0.00029863,4]
[328748553,1717763448414,-712.46,0.00029863,4]
[328748554,1717763448425,-500.0,0.00029863,4]
[328748555,1717763448437,-712.46,0.00029863,4]
[328748556,1717763448447,-712.46,0.00029863,4]
[328748557,1717763448458,-500.0,0.00029863,4]
[328748558,1717763448468,-712.46,0.00029863,4]
[328748559,1717763448485,-573.23691482,0.00029863,4]
[328748560,1717763448496,-712.46,0.00029863,4]
[328748561,1717763448506,-1087.2644,0.00029863,2]
[328748562,1717763448516,-1231.57,0.00029863,4]
[328748563,1717763448530,-1231.57,0.00029863,4]
[328748564,1717763448543,-1231.57,0.00029863,4]
[328748565,1717763448554,-1231.57,0.00029863,4]
[328748566,1717763448564,-1231.57,0.00029863,4]
[328748567,1717763448576,-1231.57,0.00029863,4]
[328748568,1717763448586,-500.0,0.00029863,4]
[328748569,1717763448597,-500.0,0.00029863,4]
[328748570,1717763448607,-212.82,0.00029863,4]
[328748571,1717763448617,-772.62,0.00029863,4]
[328748572,1717763448628,-772.62,0.00029863,4]
[328748573,1717763448639,-772.62,0.00029863,4]
[328748574,1717763448649,-772.62,0.00029863,4]
[328748575,1717763448658,-772.62,0.00029863,4]
[328748576,1717763448668,-772.62,0.00029863,4]
[328748577,1717763448678,-594.13,0.00029863,4]
[328748578,1717763448688,-440.29916265,0.00029863,4]
[328748579,1717763448706,-153.83083735,0.00029863,4]
[328748580,1717763448716,-594.13,0.00029863,4]
[328748581,1717763448726,-594.13,0.00029863,4]
[328748582,1717763448735,-594.13,0.00029863,4]
[328748583,1717763448745,-594.13,0.00029863,4]
[328748584,1717763448755,-500.0,0.00029863,4]
[328748585,1717763448764,-500.0,0.00029863,4]
[328748586,1717763448780,-500.0,0.00029863,4]
[328748587,1717763448793,-500.0,0.00029863,4]
[328748588,1717763448802,-500.0,0.00029863,4]
[328748589,1717763448812,-500.0,0.00029863,4]
[328748590,1717763448821,-5501.38,0.00029863,4]
[328748591,1717763448834,-5501.38,0.00029863,4]
[328748592,1717763448844,-5501.38,0.00029863,4]
[328748593,1717763448853,-5501.38,0.00029863,4]
[328748594,1717763448863,-5501.38,0.00029863,4]
[328748595,1717763448872,-5283.74916286,0.00029863,4]
[328748596,1717763449084,-217.63083714,0.00029863,4]
[328748597,1717763449093,-47.69987174,0.00029863,4]
[328748598,1717763449105,-452.30012826,0.00029863,4]
[328748599,1717763449115,-208.86477174,0.00029863,4]
[328748600,1717763449126,-291.13522826,0.00029863,4]
[328748601,1717763449136,-500.0,0.00029863,4]
[328748602,1717763449146,-357.39281155,0.00029863,4]
[328748603,1717763449155,-500.0,0.00029863,4]
[328748604,1717763449165,-500.0,0.00029863,4]
[328748605,1717763449175,-500.0,0.00029863,4]
[328748606,1717763449185,-500.0,0.00029863,4]
[328748607,1717763449194,-500.0,0.00029863,4]
[328748608,1717763449204,-500.0,0.00029863,4]
[328748609,1717763449213,-500.0,0.00029863,4]
[328748610,1717763449223,-500.0,0.00029863,4]
[328748611,1717763449233,-500.0,0.00029863,4]
[328748612,1717763449243,-500.0,0.00029863,4]
[328748613,1717763449253,-638.67472447,0.00029863,4]
[328748614,1717763449263,-500.0,0.00029863,4]
[328748615,1717763449279,-500.0,0.00029863,4]
[328748616,1717763449295,-500.0,0.00029863,4]
[328748617,1717763449304,-500.0,0.00029863,4]
[328748618,1717763449314,-500.0,0.00029863,4]
[328748619,1717763449324,-500.0,0.00029863,4]
[328748620,1717763449334,-500.0,0.00029863,4]
[328748621,1717763449343,-500.0,0.00029863,4]
[328748622,1717763449352,-500.0,0.00029863,4]
[328748623,1717763449361,-1511.38,0.00029863,4]
[328748624,1717763449370,-1511.38,0.00029863,4]
[328748625,1717763449379,-15.20817675,0.00029863,4]
[328748626,1717763449401,-1513.82182325,0.00029863,4]
[328748627,1717763449411,-1511.38,0.00029863,4]
[328748628,1717763449420,-1529.03,0.00029863,4]
[328748629,1717763449429,-1529.03,0.00029863,4]
[328748630,1717763449439,-1511.38,0.00029863,4]
[328748631,1717763449450,-1529.03,0.00029863,4]
[328748632,1717763449460,-303.53946575,0.00029863,4]
[328748633,1717763449473,-1207.84053425,0.00029863,4]
[328748634,1717763449490,-1529.03,0.00029863,4]
[328748635,1717763449500,-1529.03,0.00029863,4]
[328748636,1717763449509,-1511.38,0.00029863,4]
[328748637,1717763449518,-2327.55870455,0.00029863,4]
[328748641,1717763508199,-157.11055521,0.00030164,30]
[328748642,1717763508233,-8867.55024,0.000305,30]
[328748643,1717763508265,-157.11055521,0.00030603,30]
[328748644,1717763508299,-157.11055523,0.00030603,30]
[328748645,1717763508330,-161.67987442,0.00030603,30]
[328748646,1717763508360,-899.99999907,0.00031,32]
[328748651,1717763623723,150000.0,0.00014,2]
[328748652,1717763623757,851992.60216643,0.00014,2]
[328748661,1717763800299,4822533.21972662,0.00015,2]
[328748666,1717764087597,24434.72714059,0.00015,2]
[328748668,1717764105729,50000.0,0.0003,40]
[328748669,1717764105941,375.0,0.0002836,120]
[328748702,1717764635420,-155.0,0.00016381,2]
[328748703,1717764635430,-205.94174335,0.00016382,2]
[328748704,1717764635440,-155.0,0.00016382,2]
[328748705,1717764635449,-990.704083,0.00016383,2]
[328748706,1717764635459,-617.35414365,0.00017157,2]
[328748707,1717764635472,-1410.97999298,0.00017157,2]
[328748708,1717764635482,-8901.7451,0.00017159,2]
[328748709,1717764635491,-718.73,0.00019726,2]
[328748710,1717764635501,-3266.0,0.000222,3]
[328748711,1717764635510,-2968.36286544,0.000236,2]
[328748712,1717764635523,-6342.56619051,0.000236,2]
[328748713,1717764635533,-2969.29475949,0.0002399,2]
[328748714,1717764635543,-69822.41478087,0.00024,3]
[328748715,1717764635552,-300.0,0.00024,2]
[328748716,1717764635562,-300.0,0.00024316,2]
[328748717,1717764635571,-165.92,0.00024384,2]
[328748718,1717764635580,-300.0,0.00024632,2]
[328748719,1717764635589,-10968.0,0.000249,5]
[328748720,1717764635598,-300.0,0.00024947,2]
[328748721,1717764635608,-373.64465277,0.00025263,2]
[328748722,1717764635617,-859.01,0.00025542,2]
[328748723,1717764635628,-188.81,0.00025621,2]
[328748724,1717764635637,-152.0,0.00025626,3]
[328748725,1717764635646,-150.67,0.00025936,2]
[328748726,1717764635655,-250.0,0.00026019,2]
[328748727,1717764635664,-1236.96,0.00026042,3]
[328748728,1717764635675,-168.9,0.00026122,2]
[328748729,1717764635684,-164.64,0.00026133,2]
[328748730,1717764635693,-250.0,0.00026146,2]
[328748731,1717764635702,-250.0,0.00026221,2]
[328748732,1717764635711,-494.07,0.00026276,2]
[328748733,1717764635720,-169.16,0.00026612,2]
[328748735,1717764635729,-22219.27,0.00026708,2]
[328748737,1717764635739,-165.64,0.00026904,2]
[328748739,1717764635749,-856.74,0.00027397,10]
[328748741,1717764635759,-260.5,0.000274,2]
[328748743,1717764635768,-153.871108,0.00027732,2]
[328748745,1717764635777,-171.34,0.00027888,2]
[328748747,1717764635786,-1395.52842463,0.00027893,2]
[328748749,1717764635795,-248.8932519,0.00027893,2]
[328748751,1717764635805,-40630.53617037,0.000279,10]
[328748753,1717764635815,-159.69,0.00027993,2]
[328748755,1717764635826,-1800.0,0.00028,29]
[328748757,1717764635835,-1395.52842459,0.00028116,2]
[328748759,1717764635845,-248.89325183,0.00028116,2]
[328748761,1717764635854,-859.01,0.00028282,2]
[328748763,1717764635864,-1395.52842459,0.00028339,2]
[328748764,1717764635877,-248.89325183,0.00028339,2]
[328748765,1717764635889,-494.07,0.0002854,2]
[328748766,1717764635898,-1395.52842459,0.00028562,2]
[328748767,1717764635907,-248.89325183,0.00028562,2]
[328748768,1717764635918,-1000.0,0.00028675,2]
[328748769,1717764635928,-152.0,0.00028695,4]
[328748770,1717764635938,-1395.52842459,0.00028785,2]
[328748771,1717764635947,-248.89325183,0.00028785,2]
[328748772,1717764635959,-902.48219725,0.0002893,7]
[328748773,1717764635969,-5242.48893816,0.00029,2]
[328748774,1717764635980,-1395.52842459,0.00029008,15]
[328748775,1717764635990,-248.89325183,0.00029008,15]
[328748776,1717764636000,-317.81579761,0.00029149,2]
[328748777,1717764636009,-1948.6667,0.00029199,2]
[328748778,1717764636019,-164.70568513,0.000292,2]
[328748779,1717764636029,-673.55133945,0.000292,2]
[328748780,1717764636039,-969.0,0.00029201,2]
[328748781,1717764636049,-358.0,0.00029201,2]
[328748782,1717764636059,-1648.0,0.00029201,2]
[328748783,1717764636068,-615.0,0.00029201,2]
[328748784,1717764636078,-1830.0,0.00029201,2]
[328748785,1717764636087,-441.0,0.00029201,2]
[328748786,1717764636097,-1267.0,0.00029201,2]
[328748787,1717764636107,-150.0,0.00029201,2]
[328748788,1717764636117,-362.357,0.00029201,2]
[328748789,1717764636129,-2404.0,0.00029201,2]
[328748790,1717764636138,-446.0,0.00029201,2]
[328748791,1717764636147,-1304.0,0.00029201,2]
[328748792,1717764636157,-2261.894,0.00029201,2]
[328748793,1717764636166,-544.0,0.00029201,2]
[328748794,1717764636176,-1471.0,0.00029201,2]
[328748795,1717764636185,-20853.566,0.00029201,2]
[328748796,1717764636195,-150.172,0.00029201,2]
[328748797,1717764636204,-1064.0,0.00029201,2]
[328748798,1717764636213,-1395.52842459,0.00029231,15]
[328748799,1717764636222,-248.89325183,0.00029231,15]
[328748800,1717764636232,-177.68,0.00029289,2]
[328748801,1717764636241,-155.32,0.0002929,2]
[328748802,1717764636251,-500.0,0.00029298,2]
[328748803,1717764636261,-248.72791745,0.00029298,2]
[328748804,1717764636271,-506.76754349,0.00029298,2]
[328748805,1717764636281,-266312.80530504,0.00029299,2]
[328748806,1717764636293,-339.60212707,0.00029299,2]
[328748807,1717764636306,-5957.84753364,0.00029299,2]
[328748808,1717764636318,-8475.84059887,0.00029299,2]
[328748809,1717764636330,-29440.862239,0.00029299,2]
[328748810,1717764636342,-1471.89411641,0.00029299,2]
[328748811,1717764636354,-341.48088377,0.00029299,2]
[328748812,1717764636365,-872.67905712,0.00029299,2]
[328748813,1717764636380,-958.2,0.00029299,2]
[328748814,1717764636392,-3245.0,0.00029299,2]
[328748815,1717764636404,-1044.05583907,0.00029299,2]
[328748816,1717764636415,-317.7571992,0.00029299,2]
[328748817,1717764636426,-10242.28956299,0.00029299,2]
[328748823,1717764638020,-937.56930127,0.00027496,2]
[328748825,1717764638031,-33741.33474979,0.00029299,2]
[328748826,1717764638044,-39408.93607382,0.00029299,2]
[328748827,1717764638056,-570.18901416,0.00029299,2]
[328748828,1717764638068,-338.179281,0.00029299,2]
[328748829,1717764638166,-2707.3738489,0.00029299,2]
[328748830,1717764638179,-997.71437225,0.00029299,2]
[328748831,1717764638191,-3602.12219789,0.00029299,2]
[328748832,1717764638203,-1989.74789999,0.00029299,2]
[328748833,1717764638216,-780.33589964,0.00029299,2]
[328748834,1717764638228,-35390.08120013,0.00029299,2]
[328748835,1717764638240,-820.5999,0.00029299,2]
[328748836,1717764638312,-37645.9187,0.00029299,2]
[328748837,1717764638324,-36289.67809194,0.00029299,2]
[328748838,1717764638336,-16605.68176548,0.00029299,2]
[328748839,1717764638346,-50950.5986,0.000293,2]
[328748840,1717764638356,-673.55133939,0.000293,2]
[328748841,1717764638366,-159.02460555,0.00029337,2]
[328748842,1717764638378,-164.5855382,0.00029373,2]
[328748843,1717764638389,-155.23233245,0.00029375,2]
[328748844,1717764638399,-297.41096819,0.00029386,2]
[328748845,1717764638409,-150.38817663,0.00029391,2]
[328748846,1717764638420,-929.52174178,0.00029393,2]
[328748847,1717764638430,-297.41096819,0.00029398,2]
[328748848,1717764638441,-155.23233245,0.00029399,2]
[328748849,1717764638451,-673.55133939,0.000294,2]
[328748850,1717764638461,-156.57261296,0.00029414,2]
[328748851,1717764638471,-297.41096819,0.00029424,2]
[328748852,1717764638482,-242.31264403,0.00029449,2]
[328748853,1717764638492,-297.41096819,0.00029452,2]
[328748854,1717764638502,-1395.52842459,0.00029454,15]
[328748855,1717764638512,-248.89325183,0.00029454,15]
[328748856,1717764638523,-156.57261296,0.00029475,2]
[328748857,1717764638533,-12250.09028272,0.00029489,2]
[328748858,1717764638543,-1000.0,0.000295,2]
[328748859,1717764638553,-673.55133939,0.000295,2]
[328748860,1717764638563,-150.66711511,0.00029503,2]
[328748861,1717764638573,-157.96364331,0.00029536,2]
[328748862,1717764638584,-163.54975909,0.00029554,2]
[328748863,1717764638594,-150.38817663,0.00029562,2]
[328748864,1717764638604,-222.30499048,0.00029564,4]
[328748865,1717764638613,-297.41096819,0.00029573,2]
[328748866,1717764638624,-150.38817663,0.00029576,2]
[328748867,1717764638633,-523.41,0.00029589,4]
[328748868,1717764638643,-550.98,0.00029589,4]
[328748869,1717764638653,-182.37,0.0002959,6]
[328748871,1717764638662,-242.31264403,0.00029598,2]
[328748872,1717764638671,-673.55133939,0.000296,2]
[328748874,1717764638681,-150.38817663,0.00029606,2]
[328748875,1717764638691,-500.0,0.00029624,2]
[328748876,1717764638700,-200.0,0.00029624,2]
[328748877,1717764638709,-150.38817663,0.0002963,2]
[328748878,1717764638719,-297.41096819,0.00029636,2]
[328748879,1717764638729,-297.41096819,0.00029658,2]
[328748880,1717764638739,-1395.52842459,0.00029677,15]
[328748881,1717764638749,-248.89325183,0.00029677,15]
[328748882,1717764638759,-673.55133939,0.000297,2]
[328748883,1717764638769,-155.23233245,0.00029733,2]
[328748884,1717764638779,-150.38817663,0.00029749,2]
[328748885,1717764638789,-6547.56173577,0.00029763,2]
[328748886,1717764638798,-6547.56173571,0.00029775,2]
[328748887,1717764638808,-6547.56173571,0.00029788,2]
[328748888,1717764638818,-160.0,0.000298,2]
[328748889,1717764638828,-967.26377501,0.000298,7]
[328748890,1717764638838,-150.0,0.000298,6]
[328748891,1717764638848,-150.0,0.000298,6]
[328748892,1717764638858,-673.55133939,0.000298,2]
[328748893,1717764638868,-6547.56173571,0.000298,2]
[328748894,1717764638882,-4915.49,0.0002981,2]
[328748895,1717764638892,-6547.56173571,0.00029813,2]
[328748896,1717764638902,-153.36981209,0.00029823,2]
[328748897,1717764638911,-6547.56173571,0.00029825,2]
[328748898,1717764638923,-6547.56173571,0.00029838,2]
[328748899,1717764638932,-150.38817663,0.00029841,2]
[328748900,1717764638942,-155.0,0.00029846,2]
[328748901,1717764638954,-150.66711511,0.00029848,2]
[328748902,1717764638964,-6547.56173571,0.0002985,2]
[328748903,1717764638974,-194.0,0.00029853,5]
[328748904,1717764638984,-300.0,0.00029862,2]
[328748905,1717764638994,-150.0,0.00029862,2]
[328748906,1717764639004,-6547.56173571,0.00029863,2]
[328748907,1717764639014,-520.59871844,0.00029863,4]
[328748908,1717764639024,-500.0,0.00029863,4]
[328748909,1717764639034,-500.0,0.00029863,4]
[328748910,1717764639045,-500.0,0.00029863,4]
[328748911,1717764639055,-500.0,0.00029863,4]
[328748912,1717764639065,-513.64947006,0.00029863,4]
[328748913,1717764639075,-500.0,0.00029863,4]
[328748914,1717764639086,-500.0,0.00029863,4]
[328748915,1717764639096,-500.0,0.00029863,4]
[328748916,1717764639107,-352.88651304,0.00029863,4]
[328748917,1717764639117,-500.0,0.00029863,4]
[328748918,1717764639128,-513.53174784,0.00029863,4]
[328748919,1717764639139,-500.0,0.00029863,4]
[328748920,1717764639149,-500.0,0.00029863,4]
[328748921,1717764639160,-500.0,0.00029863,4]
[328748922,1717764639170,-500.0,0.00029863,4]
[328748923,1717764639180,-500.0,0.00029863,4]
[328748924,1717764639191,-500.0,0.00029863,4]
[328748925,1717764639202,-521.82481411,0.00029863,4]
[328748926,1717764639212,-500.0,0.00029863,4]
[328748927,1717764639223,-500.0,0.00029863,4]
[328748928,1717764639234,-500.0,0.00029863,4]
[328748929,1717764639244,-233.0,0.00029863,4]
[328748930,1717764639254,-500.0,0.00029863,4]
[328748931,1717764639265,-500.0,0.00029863,4]
[328748932,1717764639275,-500.0,0.00029863,4]
[328748933,1717764639286,-500.0,0.00029863,4]
[328748934,1717764639296,-513.32019041,0.00029863,4]
[328748935,1717764639307,-500.0,0.00029863,4]
[328748936,1717764639317,-500.0,0.00029863,4]
[328748937,1717764639327,-170.9,0.00029863,4]
[328748938,1717764639338,-500.0,0.00029863,4]
[328748939,1717764639348,-500.0,0.00029863,4]
[328748940,1717764639358,-512.34380614,0.00029863,4]
[328748941,1717764639369,-562.69,0.00029863,4]
[328748942,1717764639382,-500.0,0.00029863,4]
[328748943,1717764639392,-500.0,0.00029863,4]
[328748944,1717764639403,-524.18158266,0.00029863,4]
[328748945,1717764639414,-500.0,0.00029863,4]
[328748946,1717764639424,-500.0,0.00029863,4]
[328748947,1717764639435,-500.0,0.00029863,4]
[328748948,1717764639444,-520.16018456,0.00029863,4]
[328748949,1717764639455,-500.0,0.00029863,4]
[328748950,1717764639465,-500.0,0.00029863,4]
[328748951,1717764639475,-500.0,0.00029863,4]
[328748952,1717764639486,-500.0,0.00029863,4]
[328748953,1717764639496,-500.0,0.00029863,4]
[328748954,1717764639506,-500.0,0.00029863,4]
[328748955,1717764639516,-500.0,0.00029863,4]
[328748956,1717764639527,-500.0,0.00029863,4]
[328748957,1717764639537,-500.0,0.00029863,4]
[328748958,1717764639547,-500.0,0.00029863,4]
[328748959,1717764639557,-500.0,0.00029863,4]
[328748960,1717764639567,-500.0,0.00029863,4]
[328748961,1717764639578,-500.0,0.00029863,4]
[328748962,1717764639588,-500.0,0.00029863,4]
[328748963,1717764639599,-500.0,0.00029863,4]
[328748964,1717764639609,-500.0,0.00029863,4]
[328748965,1717764639619,-501.61936618,0.00029863,4]
[328748966,1717764639633,-508.80788355,0.00029863,4]